Cogmind - Beta 15 @@@ ROGUE MODE // 2025.08.01 @ 16:36:12 Player: Dex'o Result: Self-destructed Performance ------------- Evolutions (1) 500 Regions Visited (2) 400 Robots Destroyed (21) 105 Value Destroyed (373) 373 Prototype IDs (3) 60 Alien Tech Used (0) 0 Bonus (0) 0 TOTAL SCORE: 1438 Bonus ------- None Cogmind --------- Core Integrity 332/400 Matter 225/300 Energy 24/250 System Corruption 0% Temperature Warning (330) Movement Flying (106) Ox1 Location -9/Materials Parts ------- > --- POWER (1) -------- Ion Engine > --- PROPULSION (4) --- Flight Unit Flight Unit Improved Flight Unit Improved Flight Unit > --- UTILITY (2) ------ Large Storage Unit Sensor Array > --- WEAPON (2) ------- Shock Rifle Beam Rifle > --- INVENTORY (15) --- Aluminum Leg Flight Unit Flight Unit Flight Unit Cooling System Medium Battery (150) Medium Matter Pod (100) Light Armor Plating Medium Armor Plating Shock Rifle Shock Rifle Grenade Launcher Mining Laser Peak State ------------ > --- POWER ------------ Ion Engine > --- PROPULSION ------- Flight Unit Flight Unit Improved Flight Unit Improved Flight Unit > --- UTILITY ---------- Large Storage Unit Sensor Array > --- WEAPON ----------- Shock Rifle Beam Rifle > --- INVENTORY -------- Flight Unit Flight Unit Flight Unit Cooling System Medium Battery Medium Matter Pod Light Armor Plating Medium Armor Plating Shock Rifle Shock Rifle Shock Rifle Grenade Launcher Mining Laser [Rating: 18] Favorites ----------- Power Ion Engine Engine Ion Engine Propulsion Aluminum Leg Leg Aluminum Leg Wheel Wheel Flight Unit Flight Unit Utility Large Storage Unit Device Seismic Detector Storage Large Storage Unit Weapon Medium Laser Energy Gun Medium Laser Ballistic Gun Assault Rifle Build | -11 -10 -9 ------- Run | Yrd Mat Mat Slots Evolved 2 | . . 2 Power . | . . . Propulsion 2 | . . 2 Utility . | . . . Weapon . | . . . Parts Attached 30 | 6 12 12 Power 4 | 1 3 . Engine 4 | 1 3 . Core . | . . . Reactor . | . . . Propulsion 13 | 2 2 9 Treads . | . . . Leg 4 | 2 2 . Wheel 3 | . . 3 Hover . | . . . Flight 6 | . . 6 Utility 5 | 1 4 . Device 2 | . 2 . Storage 3 | 1 2 . Processor . | . . . Hackware . | . . . Protection . | . . . Artifact . | . . . Weapon 8 | 2 3 3 Energy Gun 5 | . 2 3 Energy Cannon . | . . . Ballistic Gun 3 | 2 1 . Ballistic Cannon . | . . . Launcher . | . . . Special Weapon . | . . . Impact Weapon . | . . . Slashing Weapon . | . . . Piercing Weapon . | . . . Special Melee Weapon . | . . . Unidentified Prototypes 1 | . . 1 Parts Lost 6 | . 5 1 Power 1 | . 1 . Propulsion 2 | . 2 . Utility . | . . . Weapon 3 | . 2 1 Highest Loss Streak 2 | . 2 1 To Critical Strikes . | . . . Average Backups 10 | 3 10 14 Power . | . 1 . Propulsion 4 | 1 4 5 Utility 2 | . 2 4 Weapon 2 | . 2 4 Tool/Special . | . . . Unused Backups 14 | . 1 13 Power 1 | . . 1 Propulsion 2 | . 1 1 Utility 5 | . . 5 Weapon 6 | . . 6 Tool/Special . | . . . Average Slot Usage (%) 99 | . 99 97 Engine 13 | . 13 11 Leg 23 | . 27 10 Wheel 5 | . . 23 Flight 1 | . . 7 Device 13 | . 14 11 Storage 13 | . 14 11 Energy Gun 14 | . 12 22 Ballistic Gun 11 | . 15 . Peak Build Rating 18 | 6 8 18 Average Rating 8 | 5 7 12 On Entrance 4 | . 6 8 Naked Turns . | . . . Heaviest Build 32 | 11 30 32 Greatest Support 38 | 20 20 38 Greatest Overweight (x) 3 | . 2 3 Average Overweight (x) . | . . . Largest Inventory Capacity 25 | 8 25 15 Average Capacity 12 | 7 11 15 Most Carried 16 | 5 16 15 Average Carried 10 | 3 10 14 Final Capacity 15 | 8 15 15 Final Carried 15 | 5 15 13 Class Distribution -------------------- 100% | Mutant Dominant Class ---------------- Mutant | -10/Materials Mutant | -9/Materials Resources | -11 -10 -9 ----------- Run | Yrd Mat Mat Matter Collected 781 | 292 359 130 Remotely . | . . . Salvage Created 603 | 120 368 115 Parts 30 | 4 22 4 Haulers Intercepted . | . . . Recyclers Shooed 1 | 1 . . Parts Field Recycled . | . . . Retrieved Matter . | . . . Parts Self-Destructed . | . . . Prevented . | . . . Kills | -11 -10 -9 ------- Run | Yrd Mat Mat Combat Hostiles Destroyed 14 | . 10 4 Guns 13 | . 10 3 Classes Destroyed 6 | 2 3 1 Tunneler 3 | 3 . . Recycler 2 | 1 1 . Watcher 2 | . 2 . Swarmer 8 | . 5 3 Grunt 5 | . 5 . Sentry 1 | . . 1 Best Kill Streak 3 | 2 3 3 Combat Bots Only 3 | . 3 3 Max Kills in Single Turn 1 | 1 1 1 Gunslinging . | . . . Exploded . | . . . Melee . | . . . Uniques/NPCs Destroyed . | . . . Combat | -11 -10 -9 -------- Run | Yrd Mat Mat Hostile Shots Fired 135 | . 98 37 Missed 35 | . 25 10 Hits 100 | . 73 27 Projectile 100 | . 73 27 Damage Taken 1112 | . 741 371 Core 202 | . 134 68 Absorbed by Shields . | . . . Core Remaining (%) 73 | 100 46 . Volleys Fired 77 | 8 50 19 Largest 2 | 2 2 2 Hottest 106 | 40 100 106 Shots Fired 145 | 16 97 32 Gun 145 | 16 97 32 Cannon . | . . . Launcher . | . . . Special . | . . . Kinetic 73 | 16 57 . Thermal 58 | . 40 18 Explosive . | . . . Electromagnetic 14 | . . 14 Robot Hit Streak 10 | 10 9 6 Robot Miss Streak 3 | 1 2 3 Penetration Max . | . . . Secondary Targets 1 | . 1 . Max Gunslinging Chain 1 | . 1 . Shots Hit Robots 95 | 13 64 18 Core Hits 33 | 6 22 5 Critical Kills . | . . . Critical Parts Destroyed . | . . . Critical Strikes 4 | . 2 2 Burn 4 | . 2 2 Melee Attacks . | . . . Impact . | . . . Slashing . | . . . Piercing . | . . . Sneak Attacks . | . . . Combat Hostiles . | . . . Follow-up Attacks . | . . . Damage Inflicted 1238 | 136 774 328 Guns 1152 | 136 743 273 Cannons . | . . . Explosions 55 | . . 55 Melee . | . . . Ramming 31 | . 31 . Kinetic 519 | 136 383 . Thermal 565 | . 360 205 Explosive . | . . . Electromagnetic 123 | . . 123 Impact . | . . . Slashing . | . . . Piercing . | . . . Highest Corruption . | . . . Average Corruption . | . . . Corruption Purged . | . . . Corruption Blocked . | . . . Overload Shots . | . . . Overflow Damage . | . . . Projectiles . | . . . Explosions . | . . . Melee . | . . . Knockbacks . | . . . Impact . | . . . Kinetic . | . . . Secondary . | . . . Self-Inflicted Damage . | . . . Shots . | . . . Rammed . | . . . Targets Rammed 5 | . 5 . Kicked 5 | . 5 . Crushed . | . . . Highest Temperature 330 | . 227 330 Average Temperature 102 | . 79 143 Received Heat Transfer 306 | . 252 54 Effects 3 | . . 3 Interference 3 | . . 3 Siege Activations . | . . . Martial Activations . | . . . Shielding Activations . | . . . Robots Disrupted . | . . . Combat Hostiles . | . . . Robots Corrupted . | . . . Combat Hostiles . | . . . Parts Fried . | . . . Impact Corruptions . | . . . Robots Melted 1 | . . 1 Combat Hostiles 1 | . . 1 Parts Melted 5 | . 2 3 Heat Transferred 1826 | . 1221 605 Parts Sabotaged . | . . . Parts Stolen . | . . . Parts Stripped . | . . . Power Chain Reactions 1 | . . 1 Alert | -11 -10 -9 ------- Run | Yrd Mat Mat Maximum Alert Level . | . . . Low Security (%) 100 | 100 100 100 Level 1 . | . . . Level 2 . | . . . Level 3 . | . . . Level 4 . | . . . Level 5 . | . . . High Security . | . . . Max Security . | . . . Peak Influence 70 | 10 57 70 Initial . | . . . Average 13 | 1 16 7 Influence Increases 467 | 20 326 121 Destroy 0b10 Robot/C 280 | . 200 80 Destroy 0b10 Robot/NC 35 | 20 15 . Destroy Leader 64 | . 44 20 Successful Hack 5 | . 5 . Destroy Structure 8 | . 2 6 Lose Combat Pursuer 75 | . 60 15 Influence Decreases 419 | 20 326 73 Time Decay 369 | 20 286 63 Lost Part 50 | . 40 10 Squads Dispatched 5 | . 3 2 Investigation 1 | . 1 . Extermination . | . . . Reinforcement 4 | . 2 2 Assault . | . . . Garrison . | . . . Intercept . | . . . Searches Triggered . | . . . Construction Impeded . | . . . Haulers Reinforced . | . . . Active Scanning Responses . | . . . Cargo Convoy Interrupts . | . . . Stealth | -11 -10 -9 --------- Run | Yrd Mat Mat Distress Signals 2 | . 1 1 Communications Jammed . | . . . Distress Signals . | . . . Times Spotted 27 | . 17 10 Peak Tracking Total 5 | . 5 3 Tactical Retreats 3 | . 2 1 Traps | -11 -10 -9 ------- Run | Yrd Mat Mat Traps Triggered 2 | . 1 1 Indirectly . | . . . Trap Hack Attempts . | . . . Triggered . | . . . Disarmed . | . . . Reprogrammed . | . . . Reused . | . . . Traps Extracted . | . . . Installed . | . . . Triggered . | . . . Machines | -11 -10 -9 ---------- Run | Yrd Mat Mat Machines Disabled . | . . . Max in Single Turn . | . . . Machines Repaired . | . . . Machines Dismantled . | . . . Machines Sabotaged . | . . . Overloaded Fab Kills . | . . . Hacking | -11 -10 -9 --------- Run | Yrd Mat Mat Machines Accessed 7 | . 6 1 Terminals 5 | . 4 1 Fabricators . | . . . Repair Stations . | . . . Recycling Units 2 | . 2 . Scanalyzers . | . . . Garrison Access . | . . . Total Hacks 13 | . 12 1 Successful 2 | . 2 . Failed 11 | . 10 1 Catastrophic 1 | . . 1 Database Lockouts . | . . . Manual 11 | . 10 1 Terminals 11 | . 10 1 Fabricators . | . . . Repair Stations . | . . . Recycling Units 2 | . 2 . Scanalyzers . | . . . Garrison Access . | . . . Terminal Hacks 1 | . 1 . Prototype ID Bank 1 | . 1 . Fabricator Hacks . | . . . Repair Station Hacks . | . . . Recycling Unit Hacks . | . . . Scanalyzer . | . . . Garrison Access Hacks . | . . . Unauthorized Hacks 1 | . 1 . Terminals 1 | . 1 . Botnet 1 | . 1 . Fabricators . | . . . Repair Stations . | . . . Recycling Units . | . . . Scanalyzers . | . . . Garrison Access . | . . . Data Cores Recovered . | . . . Used . | . . . Hacking Detections 6 | . 5 1 Full Trace Events . | . . . Feedback Events . | . . . Feedback Blocked . | . . . Robot Schematics Acquired . | . . . Robots Built . | . . . Authchips . | . . . Time . | . . . Total Robot Build Rating . | . . . Part Schematics Acquired . | . . . Parts Built . | . . . Authchips . | . . . Time . | . . . Total Part Build Rating . | . . . Parts Repaired . | . . . Time . | . . . Parts Recycled . | . . . Recycled Matter . | . . . Retrieved Matter . | . . . Retrieved Components . | . . . Parts Scanalyzed . | . . . Part Schematics Acquired . | . . . Parts Damaged . | . . . Bothacking | -11 -10 -9 ------------ Run | Yrd Mat Mat Used RIF Installer . | . . . Robots Hacked . | . . . Non-combat . | . . . Combat . | . . . Robot Hacks Applied . | . . . Relay Couplers Released . | . . . Fabnet Peak Effective % . | . . . Robots Rewired . | . . . Allies Hacked . | . . . Hacks Repelled . | . . . Allies | -11 -10 -9 -------- Run | Yrd Mat Mat Total Allies . | . . . Largest Group . | . . . Highest-Rated Group . | . . . Highest-Rated Ally . | . . . Total Orders . | . . . Ally Attacks . | . . . Total Damage . | . . . Kills . | . . . Allies Corrupted . | . . . Allies Melted . | . . . Intel | -11 -10 -9 ------- Run | Yrd Mat Mat Active Infowar (turns) 1708 | . 1328 380 Sensors 591 | . 211 380 Seismic 1117 | . 1117 . Robot Analysis Total . | . . . Derelict Logs Recovered . | . . . Drone Launches . | . . . Drone Recoveries . | . . . Exploration | -11 -10 -9 ------------- Run | Yrd Mat Mat Turns Passed 1878 | 146 1328 404 Spaces Moved 986 | 93 644 249 Core 5 | 5 . . Treads . | . . . Legs 734 | 88 644 2 Wheels 215 | . . 215 Hover . | . . . Flight 32 | . . 32 Fastest Speed 50 | 50 120 90 Average Speed 138 | 116 156 99 Slowest Speed 297 | 120 260 297 Overloaded Moves . | . . . Propulsion Burnouts . | . . . Robots Hopped . | . . . Potential Cave-ins . | . . . Cave-ins Triggered . | . . . Exploration Rate (%) 29 | 4 63 22 Regions Visited 2 Branch Regions . Pre-discovered Areas . | . . . Known Exits Taken . | . . . Unknown Exits Taken 2 | 1 1 . Scrap Searched . | . . . Spaces Dug . | . . . Terrain Destroyed 5 | . . 5 Melee . | . . . Projectile . | . . . AOE 5 | . . 5 Terrain Rammed . | . . . Walls Destroyed . | . . . Machines Disabled . | . . . Actions | -11 -10 -9 --------- Run | Yrd Mat Mat Total 1359 | 113 872 374 Wait 187 | 2 121 64 Move 984 | 92 643 249 Hop . | . . . Pick Up 37 | 5 25 7 Fast Attach 10 | 6 1 3 Attach 14 | . 5 9 Detach 3 | . . 3 Swap 19 | . 10 9 Drop 23 | . 12 11 Fire 77 | 8 50 19 Melee . | . . . Ram . | . . . Kick 5 | . 5 . Crush . | . . . Escape Stasis . | . . . Rewire . | . . . Trap . | . . . Miscellaneous . | . . . Route ------- -11/Scrapyard -10/Materials (discovered 3 exits: *Mat x2 / [*Min]) -9/Materials History --------- Turn | Location | Event 7 | -11/Scrapyard | Discovered new exit (range 16) 147 | -11/Scrapyard | Entered Materials 301 | -10/Materials | Build established: Mutant 384 | -10/Materials | Discovered new exit (range 9) 925 | -10/Materials | Discovered new exit (range 11) 1212 | -10/Materials | Core integrity fell below 50% 1468 | -10/Materials | Discovered new exit (range 4) 1475 | -10/Materials | Entered another Materials area 1475 | -9/Materials | Evolved 2 slots: Propulsion x2 1879 | -9/Materials | Self-destructed Last Messages --------------- Acquired Shock Rifle. Dropped Aluminum Leg. Acquired Prototype Flight Unit. Identified Imp. Flight Unit. Dropped Wheel. Dropped Com. Wheel. Dropped Arm. Wheel. Flight Unit melted. S-10 Pest destroyed. ALERT: Hostiles spotted, dispatching reinforcements to Terminal M008. Overheating: System interference. Sensor Array temporarily disabled. Beam Rifle temporarily disabled. Acquired Aluminum Leg. Chain reaction triggered in Imp. Ion Engine. Overheating: System interference. Shock Rifle temporarily disabled. Shock Rifle destroyed. Y-45 Defender suffers critical hit (Burn). Map ----- +----------------------------------------------------+ | ??????????????????????????????????????? | | ??????????????????????????????????????? | | ??????????????????????????????????????? | | ??????????????????????????????????????? | | ??????????????????????????????????????? | | ??????????????????????????????????????? | | ??????????????????????????????????????? | | ?????????????????????????? ???????????? | | ????????????????????????? ????????????? | | ???????????????????????? #????????????? | | ######################## #####????????? | | ?????????? | | ############# #????????????? | | ????????????# %| ##???????????? | | ????????????# || # ???????????? | | ????????????# " # ???????????? | | ????????????# " # ???????????? | | ????????????+ " + ???????????? | | ????????????# # ???????????? | | ????????????# # ???????????? | | ????????????# #####; ; ???????????? | | ????????????# #??#;;;;#####???????? | | ????????????# #??# Y #???????? | | ????????????# #??# #???????? | | ????????????# #??# r= #???????? | | ????????????# #??# @== #???????? | | ????????????# #### === #???????? | | ????????????# + #???????? | | ????????????# ##### #???????? | | ????????????# #???# [ #???????? | | ?????????#### ##???# % =%*#???????? | | ?????????# [[#????##w####+##???????? | | ?????????#!!!! [#????? %???? ????????? | | ?????????#!!!! =#???? ???? ????????? | | ?????????########???? ???? ???????? | | ???????????????????? ""??????# ???????? | | ???????????????????? ""??????? ???????? | | ??????????????????? ?????????? #??????? | | ???????????????????????????????#??????? | | ??????????????????????????????????????? | | ??????????????????????????????????????? | | ??????????????????????????????????????? | | ??????????????????????????????????????? | | ??????????????????????????????????????? | | ??????????????????????????????????????? | | ??????????????????????????????????????? | | ??????????????????????????????????????? | | ??????????????????????????????????????? | | ??????????????????????????????????????? | | ######????????????????????????????????? | +----------------------------------------------------+ Best States ------------- Heat Dissipation 28 Energy Generation 10 Energy Capacity 250 Matter Stores 300 Matter Capacity 300 Sight Range 16 Robot Scan Range 14 Terrain Scan Density 10 Evasion (%) 55 Item Schematics ----------------- None Robot Schematics ------------------ None Fabricated ------------ Nothing Repaired ---------- Nothing Alien Tech Used ----------------- None Achievements -------------- None Challenges ------------ None Game ------ Seed SurgeDisruptionDatajack Manual? 0 Play Time 00:23:20 Cumulative 12.8 hours Start 2025.08.01 @ 16:15:37 End 2025.08.01 @ 16:36:12 Sessions 1 Manual Loads 0 Difficulty Rogue Special Mode None Game No. 19 Rogue 19 Adventurer 0 Explorer 0 Win Type - Total 0 Types 0/0/0/0/0/0/0/0/0/0 Lore% 10 Gallery% 16 Achievement% 17 Wizard Run 0 Options --------- Layout 1 ASCII 0 Keyboard 0 Movement Mouse Keybinds 0 Fullscreen 2 Font 24/Smallcaps Map View 50x35 Zoom Use 0% Tactical HUD 0 Map Filters NONE Filters NONE Steam 1 RUN: ad885f4d-849c-4400-80fb-afda343ccaa7